fUSD/lending_fUSD_20260630
["ID","MTS","AMOUNT","RATE_DAILY","PERIOD"]
[426727464,1782762640000,-1176.0977,0.00012182,2]
[426727465,1782762640000,-160.0,0.00012216,2]
[426727462,1782762640000,-1772.01846444,0.00012182,2]
[426727460,1782762640000,-493.42459806,0.00012182,2]
[426727469,1782762640000,-187.87900997,0.0001228,2]
[426727461,1782762640000,-340.29399908,0.00012182,2]
[426727452,1782762640000,-344.79133046,0.00012181,2]
[426727457,1782762640000,-117279.09238451,0.00012181,2]
[426727458,1782762640000,-7401.39080751,0.00012182,2]
[426727454,1782762640000,-272.5845,0.00012181,2]
[426727455,1782762640000,-312.0,0.00012181,2]
[426727456,1782762640000,-1941.18414516,0.00012181,2]
[426727453,1782762640000,-299.48307292,0.00012181,2]
[426727467,1782762640000,-1000.0,0.0001228,2]
[426727459,1782762640000,-253.08442174,0.00012182,2]
[426727470,1782762640000,-196.547,0.00012281,2]
[426727471,1782762640000,-2781.696,0.00012281,2]
[426727472,1782762640000,-24614.08228897,0.00012281,2]
[426727489,1782762640000,-500.0,0.00013698,2]
[426727490,1782762640000,-500.0,0.00013698,2]
[426727488,1782762640000,-500.0,0.00013698,2]
[426727491,1782762640000,-500.0,0.00013698,2]
[426727485,1782762640000,-500.0,0.00013698,2]
[426727486,1782762640000,-500.0,0.00013698,2]
[426727484,1782762640000,-400.95584748,0.00013698,2]
[426727482,1782762640000,-250.0,0.000134,2]
[426727483,1782762640000,-500.0,0.00013698,2]
[426727487,1782762640000,-500.0,0.00013698,2]
[426727480,1782762640000,-555.11,0.00012896,2]
[426727478,1782762640000,-309.18,0.00012639,2]
[426727475,1782762640000,-975.13149453,0.00012377,2]
[426727476,1782762640000,-309.18,0.00012438,2]
[426727477,1782762640000,-216.58458871,0.00012458,2]
[426727479,1782762640000,-160.0,0.0001283,2]
[426727473,1782762640000,-2000.0,0.00012282,2]
[426727481,1782762640000,-255.0,0.00013265,2]
[426727474,1782762640000,-160.0,0.00012355,2]
[426727544,1782762641000,-398.76,0.00017645,2]
[426727532,1782762641000,-560.78,0.00016931,2]
[426727542,1782762641000,-426.46,0.00017645,2]
[426727533,1782762641000,-1034.52,0.00016931,2]
[426727534,1782762641000,-958.17,0.00016932,2]
[426727545,1782762641000,-347.73,0.00017645,2]
[426727520,1782762641000,-500.0,0.00016438,2]
[426727531,1782762641000,-166.66,0.00016799,2]
[426727528,1782762641000,-888.0,0.00016438,2]
[426727526,1782762641000,-1066.51,0.00016438,2]
[426727535,1782762641000,-239.0,0.00017126,2]
[426727529,1782762641000,-166.66,0.00016479,2]
[426727530,1782762641000,-166.66,0.0001652,2]
[426727543,1782762641000,-215.06,0.00017645,2]
[426727548,1782762641000,-199.13,0.00017696,2]
[426727536,1782762641000,-493.42459802,0.00017373,2]
[426727538,1782762641000,-1002.52,0.00017424,2]
[426727537,1782762641000,-16641.03377248,0.0001739,2]
[426727541,1782762641000,-398.07,0.00017645,2]
[426727540,1782762641000,-6369.33,0.00017427,2]
[426727547,1782762641000,-345.72,0.00017645,2]
[426727546,1782762641000,-580.22,0.00017645,2]
[426727551,1782762641000,-153.75,0.00018016,2]
[426727553,1782762641000,-232.48,0.00018016,2]
[426727550,1782762641000,-182.14,0.00018016,2]
[426727552,1782762641000,-181.45,0.00018016,2]
[426727549,1782762641000,-176.32,0.00017696,2]
[426727527,1782762641000,-987.81,0.00016438,2]
[426727539,1782762641000,-928.54,0.00017425,2]
[426727525,1782762641000,-586.29,0.00016438,2]
[426727498,1782762641000,-500.0,0.00013698,2]
[426727523,1782762641000,-578.13,0.00016438,2]
[426727492,1782762641000,-500.0,0.00013698,2]
[426727493,1782762641000,-183.99,0.00013698,2]
[426727495,1782762641000,-500.0,0.00013698,2]
[426727502,1782762641000,-166.66,0.00014648,2]
[426727501,1782762641000,-433.0,0.00014447,2]
[426727503,1782762641000,-493.42459802,0.00014777,2]
[426727497,1782762641000,-500.0,0.00013698,2]
[426727496,1782762641000,-500.0,0.00013698,2]
[426727504,1782762641000,-16641.03377248,0.00014786,2]
[426727500,1782762641000,-166.66,0.0001418,2]
[426727494,1782762641000,-500.0,0.00013698,2]
[426727506,1782762641000,-166.66,0.00015199,2]
[426727516,1782762641000,-500.0,0.00016438,2]
[426727522,1782762641000,-500.0,0.00016438,2]
[426727517,1782762641000,-500.0,0.00016438,2]
[426727518,1782762641000,-500.0,0.00016438,2]
[426727507,1782762641000,-500.0,0.00015519,2]
[426727508,1782762641000,-166.66,0.00015519,2]
[426727512,1782762641000,-166.66,0.00015839,2]
[426727510,1782762641000,-1772.01846439,0.00015646,2]
[426727515,1782762641000,-340.29399903,0.00016318,2]
[426727513,1782762641000,-166.66,0.00016052,2]
[426727511,1782762641000,-736.0,0.00015726,2]
[426727509,1782762641000,-166.66,0.00015584,2]
[426727514,1782762641000,-166.66,0.00016159,2]
[426727519,1782762641000,-323.65378241,0.00016438,2]
[426727521,1782762641000,-500.0,0.00016438,2]
[426727524,1782762641000,-657.87,0.00016438,2]
[426727505,1782762641000,-166.66,0.00015116,2]
[426727556,1782762641000,-8790.64,0.00018533,2]
[426727499,1782762641000,-500.0,0.00013698,2]
[426727555,1782762641000,-970.52,0.00018082,2]
[426727602,1782762641000,-353.0,0.0002,2]
[426727600,1782762641000,-1027.0,0.0002,2]
[426727607,1782762641000,-1094.57677152,0.000202,2]
[426727605,1782762641000,-1203.00910289,0.000202,2]
[426727603,1782762641000,-1003.21151025,0.000202,2]
[426727609,1782762641000,-10168.3979677,0.000202,2]
[426727611,1782762641000,-1003.21151025,0.000204,2]
[426727613,1782762641000,-1203.00910289,0.000204,2]
[426727624,1782762641000,-151.0,0.00020591,2]
[426727626,1782762641000,-151.0,0.00020591,2]
[426727628,1782762641000,-151.0,0.00020591,2]
[426727632,1782762641000,-151.0,0.00020591,2]
[426727615,1782762641000,-1094.57677152,0.000204,2]
[426727591,1782762641000,-177.0,0.0002,2]
[426727617,1782762641000,-10168.3979677,0.000204,2]
[426727620,1782762641000,-340.29399903,0.00020455,2]
[426727637,1782762641000,-151.0,0.00020591,2]
[426727622,1782762641000,-151.0,0.00020591,2]
[426727635,1782762641000,-151.0,0.00020591,2]
[426727641,1782762641000,-151.0,0.00020591,2]
[426727645,1782762641000,-151.0,0.00020591,2]
[426727656,1782762641000,-151.0,0.00020591,2]
[426727643,1782762641000,-151.0,0.00020591,2]
[426727639,1782762641000,-151.0,0.00020591,2]
[426727652,1782762641000,-151.0,0.00020591,2]
[426727650,1782762641000,-151.0,0.00020591,2]
[426727654,1782762641000,-151.0,0.00020591,2]
[426727554,1782762641000,-203.69,0.00018016,2]
[426727630,1782762641000,-151.0,0.00020591,2]
[426727594,1782762641000,-426.0,0.0002,2]
[426727647,1782762641000,-151.0,0.00020591,2]
[426727598,1782762641000,-683.0,0.0002,2]
[426727596,1782762641000,-176.0,0.0002,2]
[426727557,1782762641000,-2573.38744215,0.00018877,2]
[426727558,1782762641000,-1772.01846439,0.0001911,2]
[426727561,1782762641000,-500.0,0.00019355,7]
[426727563,1782762641000,-533.73,0.00019355,7]
[426727559,1782762641000,-508.43,0.00019355,7]
[426727564,1782762641000,-1003.21151025,0.000196,2]
[426727562,1782762641000,-500.0,0.00019355,7]
[426727570,1782762641000,-1094.57677152,0.000198,2]
[426727565,1782762641000,-166.67964073,0.000196,2]
[426727567,1782762641000,-10168.3979677,0.000196,2]
[426727566,1782762641000,-1094.57677152,0.000196,2]
[426727569,1782762641000,-166.67964073,0.000198,2]
[426727568,1782762641000,-1003.21151025,0.000198,2]
[426727560,1782762641000,-500.0,0.00019355,7]
[426727571,1782762641000,-10168.3979677,0.000198,2]
[426727572,1782762641000,-493.42459802,0.00019968,2]
[426727587,1782762641000,-290.0,0.0002,2]
[426727580,1782762641000,-1094.57677152,0.0002,2]
[426727578,1782762641000,-1203.00910289,0.0002,2]
[426727579,1782762641000,-154.0,0.0002,2]
[426727576,1782762641000,-168.0,0.0002,2]
[426727577,1782762641000,-166.67964073,0.0002,2]
[426727575,1782762641000,-1003.21151025,0.0002,2]
[426727586,1782762641000,-186.0,0.0002,2]
[426727574,1782762641000,-872.0,0.0002,2]
[426727582,1782762641000,-10168.3979677,0.0002,2]
[426727584,1782762641000,-790.0,0.0002,2]
[426727590,1782762641000,-164.077779,0.0002,2]
[426727573,1782762641000,-16641.03377248,0.00019993,2]
[426727708,1782762642000,-500.0,0.00021917,2]
[426727702,1782762642000,-164.077779,0.000215,2]
[426727699,1782762642000,-1203.00910289,0.000214,2]
[426727704,1782762642000,-10168.3979677,0.000217,2]
[426727700,1782762642000,-514.02,0.00021401,2]
[426727703,1782762642000,-1203.00910289,0.000217,2]
[426727705,1782762642000,-1203.00910289,0.000219,2]
[426727707,1782762642000,-500.0,0.00021917,2]
[426727706,1782762642000,-500.0,0.00021917,2]
[426727713,1782762642000,-173.06,0.00021918,2]
[426727701,1782762642000,-10168.3979677,0.000215,2]
[426727721,1782762642000,-426.0,0.00022,2]
[426727710,1782762642000,-500.0,0.00021917,2]
[426727711,1782762642000,-500.0,0.00021917,2]
[426727719,1782762642000,-290.0,0.00022,2]
[426727716,1782762642000,-154.0,0.00022,2]
[426727718,1782762642000,-186.0,0.00022,2]
[426727715,1782762642000,-168.0,0.00022,2]
[426727717,1782762642000,-790.0,0.00022,2]
[426727720,1782762642000,-177.0,0.00022,2]
[426727714,1782762642000,-872.0,0.00022,2]
[426727709,1782762642000,-500.0,0.00021917,2]
[426727723,1782762642000,-176.0,0.00022,2]
[426727712,1782762642000,-500.0,0.00021917,2]
[426727697,1782762642000,-10168.3979677,0.000212,2]
[426727680,1782762642000,-182.34882211,0.00021,2]
[426727692,1782762642000,-176.0,0.00021,2]
[426727734,1782762642000,-16641.03377248,0.00022597,2]
[426727659,1782762642000,-151.0,0.00020591,2]
[426727661,1782762642000,-151.0,0.00020591,2]
[426727667,1782762642000,-10168.3979677,0.000206,2]
[426727669,1782762642000,-500.0,0.00020799,2]
[426727671,1782762642000,-1203.00910289,0.000208,2]
[426727674,1782762642000,-10168.3979677,0.000208,2]
[426727682,1782762642000,-168.0,0.00021,2]
[426727665,1782762642000,-1203.00910289,0.000206,2]
[426727663,1782762642000,-151.0,0.00020591,2]
[426727678,1782762642000,-872.0,0.00021,2]
[426727698,1782762642000,-4539.76048131,0.00021377,7]
[426727676,1782762642000,-245.32,0.0002088,2]
[426727685,1782762642000,-1203.00910289,0.00021,2]
[426727687,1782762642000,-790.0,0.00021,2]
[426727696,1782762642000,-1203.00910289,0.000212,2]
[426727686,1782762642000,-10168.3979677,0.00021,2]
[426727693,1782762642000,-683.0,0.00021,2]
[426727691,1782762642000,-426.0,0.00021,2]
[426727688,1782762642000,-186.0,0.00021,2]
[426727689,1782762642000,-290.0,0.00021,2]
[426727694,1782762642000,-1027.0,0.00021,2]
[426727695,1782762642000,-353.0,0.00021,2]
[426727690,1782762642000,-177.0,0.00021,2]
[426727684,1782762642000,-154.0,0.00021,2]
[426727733,1782762642000,-1772.01846439,0.00022574,2]
[426727731,1782762642000,-5000.0,0.00022479,2]
[426727722,1782762642000,-605.0,0.00022,2]
[426727749,1782762642000,-1027.0,0.00023,2]
[426727750,1782762642000,-353.0,0.00023,2]
[426727754,1782762642000,-161.62702624,0.0002365,2]
[426727756,1782762642000,-192.12743159,0.0002365,2]
[426727760,1782762642000,-156.9737053,0.0002365,2]
[426727763,1782762642000,-205.45789899,0.00023651,2]
[426727765,1782762642000,-215.60916723,0.00023651,2]
[426727764,1782762642000,-155.26384582,0.00023651,2]
[426727762,1782762642000,-204.78797366,0.00023651,2]
[426727767,1782762642000,-175.14525778,0.00023656,2]
[426727766,1782762642000,-167.21814757,0.00023651,2]
[426727757,1782762642000,-152.45479072,0.0002365,2]
[426727771,1782762642000,-872.0,0.00024,2]
[426727761,1782762642000,-163.43255378,0.0002365,2]
[426727770,1782762642000,-253.08442174,0.00023917,2]
[426727768,1782762642000,-166.53770622,0.00023657,2]
[426727772,1782762642000,-168.0,0.00024,2]
[426727773,1782762642000,-154.0,0.00024,2]
[426727774,1782762642000,-790.0,0.00024,2]
[426727777,1782762642000,-177.0,0.00024,2]
[426727780,1782762642000,-683.0,0.00024,2]
[426727781,1782762642000,-1027.0,0.00024,2]
[426727775,1782762642000,-186.0,0.00024,2]
[426727728,1782762642000,-1033.56,0.00022466,2]
[426727769,1782762642000,-9188.7444,0.00023877,7]
[426727758,1782762642000,-162.69052271,0.0002365,2]
[426727778,1782762642000,-426.0,0.00024,2]
[426727752,1782762642000,-6791.2101748,0.00023377,7]
[426727753,1782762642000,-166.87805171,0.00023646,2]
[426727726,1782762642000,-353.0,0.00022,2]
[426727724,1782762642000,-683.0,0.00022,2]
[426727729,1782762642000,-645.96,0.00022466,2]
[426727732,1782762642000,-493.42459802,0.00022563,2]
[426727725,1782762642000,-1027.0,0.00022,2]
[426727727,1782762642000,-1357.69,0.00022466,2]
[426727735,1782762642000,-10996.46,0.00022984,7]
[426727737,1782762642000,-8772.47,0.00022984,7]
[426727738,1782762642000,-872.0,0.00023,2]
[426727744,1782762642000,-164.077779,0.00023,2]
[426727740,1782762642000,-154.0,0.00023,2]
[426727730,1782762642000,-1023.27,0.00022466,2]
[426727736,1782762642000,-7321.75,0.00022984,7]
[426727739,1782762642000,-168.0,0.00023,2]
[426727746,1782762642000,-426.0,0.00023,2]
[426727741,1782762642000,-790.0,0.00023,2]
[426727745,1782762642000,-177.0,0.00023,2]
[426727743,1782762642000,-290.0,0.00023,2]
[426727747,1782762642000,-176.0,0.00023,2]
[426727751,1782762642000,-152.0,0.00023315,3]
[426727748,1782762642000,-683.0,0.00023,2]
[426727755,1782762642000,-173.93550849,0.0002365,2]
[426727742,1782762642000,-186.0,0.00023,2]
[426727759,1782762642000,-161.76387299,0.0002365,2]
[426727825,1782762643000,-150.05038681,0.00024915,2]
[426727824,1782762643000,-350.29051555,0.00024914,2]
[426727817,1782762643000,-313.9474106,0.00024907,2]
[426727818,1782762643000,-326.86510756,0.00024907,2]
[426727820,1782762643000,-409.57594732,0.00024909,2]
[426727815,1782762643000,-323.52774598,0.00024907,2]
[426727816,1782762643000,-209.7586639,0.00024907,2]
[426727821,1782762643000,-410.91579797,0.00024909,2]
[426727814,1782762643000,-325.38104542,0.00024907,2]
[426727834,1782762643000,-294.45489804,0.00025,2]
[426727819,1782762643000,-528.92950021,0.00024909,2]
[426727823,1782762643000,-334.43629514,0.00024909,2]
[426727838,1782762643000,-690.48904749,0.00025,2]
[426727826,1782762643000,-333.07541244,0.00024915,2]
[426727827,1782762643000,-197.0651731,0.00024915,2]
[426727829,1782762643000,-880.6921568,0.00025,2]
[426727832,1782762643000,-809.79730276,0.00025,2]
[426727831,1782762643000,-161.94377835,0.00025,2]
[426727833,1782762643000,-202.0,0.00025,2]
[426727830,1782762643000,-180.74802906,0.00025,2]
[426727836,1782762643000,-429.59671447,0.00025,2]
[426727847,1782762643000,-231.1,0.00025675,7]
[426727811,1782762643000,-237.37493788,0.00024907,2]
[426727837,1782762643000,-180.0,0.00025,2]
[426727846,1782762643000,-411.45,0.00025581,7]
[426727828,1782762643000,-151.83365077,0.00024967,2]
[426727813,1782762643000,-304.90958143,0.00024907,2]
[426727800,1782762643000,-189.442179,0.00024903,2]
[426727812,1782762643000,-384.25486317,0.00024907,2]
[426727835,1782762643000,-193.0,0.00025,2]
[426727787,1782762643000,-2702.38,0.00024174,2]
[426727785,1782762643000,-500.0,0.00024173,2]
[426727786,1782762643000,-311.49,0.00024174,2]
[426727798,1782762643000,-152.0,0.00024697,4]
[426727789,1782762643000,-516.24,0.00024174,2]
[426727788,1782762643000,-59045.75,0.00024174,2]
[426727796,1782762643000,-1000.0,0.00024658,2]
[426727792,1782762643000,-340.29399903,0.00024591,2]
[426727790,1782762643000,-9912.37,0.00024174,2]
[426727791,1782762643000,-2977.68,0.00024282,7]
[426727793,1782762643000,-456.10089585,0.00024657,2]
[426727822,1782762643000,-431.21833445,0.00024909,2]
[426727794,1782762643000,-173.06,0.00024658,8]
[426727797,1782762643000,-280.61,0.00024658,2]
[426727799,1782762643000,-208.96340734,0.00024903,2]
[426727801,1782762643000,-333.75610343,0.00024903,2]
[426727804,1782762643000,-175.83252799,0.00024903,2]
[426727807,1782762643000,-183.48332932,0.00024903,2]
[426727805,1782762643000,-171.53380848,0.00024903,2]
[426727809,1782762643000,-347.87101698,0.00024907,2]
[426727808,1782762643000,-323.25405248,0.00024907,2]
[426727802,1782762643000,-186.40382598,0.00024903,2]
[426727803,1782762643000,-186.05060372,0.00024903,2]
[426727810,1782762643000,-189.20515118,0.00024907,2]
[426727806,1782762643000,-172.02010373,0.00024903,2]
[426727795,1782762643000,-900.0,0.00024658,2]
[426727840,1782762643000,-363.18545398,0.00025,2]
[426727897,1782762643000,-646.82750168,0.00025747,2]
[426727842,1782762643000,-493.42459802,0.00025159,2]
[426727880,1782762643000,-470.9211159,0.00025746,2]
[426727875,1782762643000,-488.07156813,0.00025746,2]
[426727881,1782762643000,-193.14651387,0.00025746,2]
[426727876,1782762643000,-151.54212376,0.00025746,2]
[426727879,1782762643000,-419.51732781,0.00025746,2]
[426727874,1782762643000,-457.36437215,0.00025746,2]
[426727877,1782762643000,-223.60584626,0.00025746,2]
[426727878,1782762643000,-485.29161896,0.00025746,2]
[426727883,1782762643000,-211.02892932,0.00025746,2]
[426727882,1782762643000,-197.10731322,0.00025746,2]
[426727893,1782762643000,-417.86599109,0.00025747,2]
[426727885,1782762643000,-222.03500896,0.00025746,2]
[426727873,1782762643000,-576.38229476,0.00025746,2]
[426727890,1782762643000,-285.65760357,0.00025746,2]
[426727891,1782762643000,-223.98397715,0.00025746,2]
[426727886,1782762643000,-155.49693022,0.00025746,2]
[426727892,1782762643000,-251.97826501,0.00025747,2]
[426727889,1782762643000,-562.17661039,0.00025746,2]
[426727888,1782762643000,-226.56568445,0.00025746,2]
[426727894,1782762643000,-352.6196668,0.00025747,2]
[426727895,1782762643000,-614.36392097,0.00025747,2]
[426727898,1782762643000,-501.65444271,0.00025747,2]
[426727899,1782762643000,-192.65205923,0.00025753,2]
[426727900,1782762643000,-525.43577333,0.00025753,2]
[426727896,1782762643000,-616.37369696,0.00025747,2]
[426727843,1782762643000,-16641.03377248,0.00025201,2]
[426727887,1782762643000,-490.29766134,0.00025746,2]
[426727872,1782762643000,-186.06818761,0.00025746,2]
[426727884,1782762643000,-229.65305297,0.00025746,2]
[426727862,1782762643000,-343.06761696,0.00025742,2]
[426727871,1782762643000,-227.74608852,0.00025746,2]
[426727844,1782762643000,-596.24,0.00025364,7]
[426727841,1782762643000,-206.0,0.00025073,2]
[426727845,1782762643000,-151.83365069,0.0002543,2]
[426727849,1782762643000,-189.0915053,0.00025742,2]
[426727848,1782762643000,-924.42,0.00025675,7]
[426727852,1782762643000,-200.27556319,0.00025742,2]
[426727853,1782762643000,-378.884358,0.00025742,2]
[426727850,1782762643000,-273.43610074,0.00025742,2]
[426727857,1782762643000,-209.90952109,0.00025742,2]
[426727851,1782762643000,-417.92681467,0.00025742,2]
[426727858,1782762643000,-372.80765195,0.00025742,2]
[426727854,1782762643000,-229.40462816,0.00025742,2]
[426727839,1782762643000,-1043.44304302,0.00025,2]
[426727855,1782762643000,-500.63415514,0.00025742,2]
[426727856,1782762643000,-268.72276959,0.00025742,2]
[426727868,1782762643000,-521.80652547,0.00025746,2]
[426727863,1782762643000,-344.04020746,0.00025742,2]
[426727869,1782762643000,-530.93963267,0.00025746,2]
[426727864,1782762643000,-246.37316437,0.00025742,2]
[426727865,1782762643000,-366.96665865,0.00025742,2]
[426727861,1782762643000,-351.66505598,0.00025742,2]
[426727860,1782762643000,-372.10120744,0.00025742,2]
[426727870,1782762643000,-474.74987576,0.00025746,2]
[426727867,1782762643000,-484.88107872,0.00025746,2]
[426727859,1782762643000,-186.60823192,0.00025742,2]
[426727866,1782762643000,-206.15079013,0.00025742,2]
[426727944,1782762644000,-567.61545354,0.00026305,2]
[426727941,1782762644000,-412.30158026,0.00026301,2]
[426727935,1782762644000,-344.98459297,0.00026301,2]
[426727929,1782762644000,-162.92526218,0.00026301,2]
[426727938,1782762644000,-514.60142544,0.00026301,2]
[426727934,1782762644000,-558.15181116,0.00026301,2]
[426727936,1782762644000,-527.49758397,0.00026301,2]
[426727932,1782762644000,-214.44200209,0.00026301,2]
[426727930,1782762644000,-246.78690879,0.00026301,2]
[426727939,1782762644000,-516.06031119,0.00026301,2]
[426727943,1782762644000,-695.74203396,0.00026305,2]
[426727937,1782762644000,-161.30665723,0.00026301,2]
[426727950,1782762644000,-650.76209085,0.00026305,2]
[426727945,1782762644000,-712.12481364,0.00026305,2]
[426727947,1782762644000,-455.49217704,0.00026305,2]
[426727946,1782762644000,-377.95345746,0.00026305,2]
[426727948,1782762644000,-372.13637523,0.00026305,2]
[426727955,1782762644000,-629.27599171,0.00026305,2]
[426727952,1782762644000,-303.08424753,0.00026305,2]
[426727951,1782762644000,-609.81916287,0.00026305,2]
[426727964,1782762644000,-165.81969986,0.00026305,2]
[426727954,1782762644000,-647.05549195,0.00026305,2]
[426727953,1782762644000,-447.21169252,0.00026305,2]
[426727956,1782762644000,-405.72163577,0.00026305,2]
[426727957,1782762644000,-287.75639426,0.00026305,2]
[426727931,1782762644000,-442.03262765,0.00026301,2]
[426727949,1782762644000,-768.50972635,0.00026305,2]
[426727928,1782762644000,-559.21147793,0.00026301,2]
[426727903,1782762644000,-248.08900785,0.00025753,2]
[426727933,1782762644000,-373.21646383,0.00026301,2]
[426727901,1782762644000,-289.94206251,0.00025753,2]
[426727904,1782762644000,-307.46638256,0.00025753,2]
[426727902,1782762644000,-236.30083577,0.00025753,2]
[426727906,1782762644000,-237.43391576,0.00025753,2]
[426727905,1782762644000,-300.10077361,0.00025753,2]
[426727907,1782762644000,-206.07956678,0.00025753,2]
[426727908,1782762644000,-271.37454611,0.00025753,2]
[426727915,1782762644000,-285.0,0.00026194,7]
[426727909,1782762644000,-499.61311866,0.00025753,2]
[426727910,1782762644000,-226.75324915,0.00025753,2]
[426727911,1782762644000,-394.1303462,0.00025753,2]
[426727912,1782762644000,-151.83365069,0.00025894,2]
[426727940,1782762644000,-550.44998797,0.00026301,2]
[426727913,1782762644000,-1772.01846439,0.00026039,2]
[426727916,1782762644000,-303.08234056,0.00026301,2]
[426727918,1782762644000,-167.28378953,0.00026301,2]
[426727919,1782762644000,-626.89022201,0.00026301,2]
[426727920,1782762644000,-400.55112638,0.00026301,2]
[426727917,1782762644000,-546.87220147,0.00026301,2]
[426727921,1782762644000,-408.34913118,0.00026301,2]
[426727922,1782762644000,-568.326537,0.00026301,2]
[426727923,1782762644000,-458.80925632,0.00026301,2]
[426727927,1782762644000,-419.81904219,0.00026301,2]
[426727926,1782762644000,-193.33218948,0.00026301,2]
[426727924,1782762644000,-667.51220685,0.00026301,2]
[426727925,1782762644000,-537.44553918,0.00026301,2]
[426727914,1782762644000,-152.0,0.00026079,5]
[426727963,1782762644000,-459.30610594,0.00026305,2]
[426727942,1782762644000,-646.50810496,0.00026305,2]
[426727958,1782762644000,-229.80872473,0.00026305,2]
[426727993,1782762644000,-445.0943189,0.00026312,2]
[426728001,1782762644000,-496.17801571,0.00026312,2]
[426727994,1782762644000,-328.05306835,0.00026312,2]
[426727997,1782762644000,-269.68533526,0.00026312,2]
[426727995,1782762644000,-166.20100474,0.00026312,2]
[426728000,1782762644000,-472.60167155,0.00026312,2]
[426727996,1782762644000,-700.5810311,0.00026312,2]
[426727998,1782762644000,-579.88412503,0.00026312,2]
[426727999,1782762644000,-386.70038848,0.00026312,2]
[426728002,1782762644000,-461.19957384,0.00026312,2]
[426728003,1782762644000,-450.15116042,0.00026312,2]
[426728005,1782762644000,-474.86783152,0.00026312,2]
[426727992,1782762644000,-312.25917745,0.00026312,2]
[426728006,1782762644000,-412.15913355,0.00026312,2]
[426728007,1782762644000,-165.09216535,0.00026312,2]
[426728008,1782762644000,-542.74909222,0.00026312,2]
[426728009,1782762644000,-666.15082488,0.00026312,2]
[426728011,1782762644000,-314.15009391,0.00026312,2]
[426728010,1782762644000,-151.31151162,0.00026312,2]
[426728013,1782762644000,-151.83365069,0.00026357,2]
[426728012,1782762644000,-591.1955193,0.00026312,2]
[426728016,1782762644000,-151.83365069,0.00026821,2]
[426728017,1782762644000,-808.13513119,0.00026864,2]
[426728014,1782762644000,-568.0,0.00026521,2]
[426728018,1782762644000,-869.67754245,0.00026864,2]
[426728015,1782762644000,-500.0,0.0002674,2]
[426728004,1782762644000,-170.05300881,0.00026312,2]
[426727990,1782762644000,-179.1040488,0.00026312,2]
[426727961,1782762644000,-419.78490682,0.00026305,2]
[426727989,1782762644000,-411.88051466,0.00026312,2]
[426727962,1782762644000,-422.05785865,0.00026305,2]
[426727960,1782762644000,-386.29302775,0.00026305,2]
[426727959,1782762644000,-627.8948212,0.00026305,2]
[426727965,1782762644000,-200.06265244,0.00026305,2]
[426727967,1782762644000,-178.93603588,0.00026305,2]
[426727969,1782762644000,-653.73021512,0.00026305,2]
[426727976,1782762644000,-214.29614289,0.00026305,2]
[426727991,1782762644000,-385.30411847,0.00026312,2]
[426727966,1782762644000,-176.34457495,0.00026305,2]
[426727977,1782762644000,-447.96795431,0.00026305,2]
[426727972,1782762644000,-225.96549144,0.00026305,2]
[426727973,1782762644000,-453.13136889,0.00026305,2]
[426727970,1782762644000,-302.41819783,0.00026305,2]
[426727975,1782762644000,-571.31520713,0.00026305,2]
[426727974,1782762644000,-281.08830519,0.00026305,2]
[426727968,1782762644000,-310.99386043,0.00026305,2]
[426727987,1782762644000,-862.4366689,0.00026306,2]
[426727983,1782762644000,-176.3098334,0.00026306,2]
[426727980,1782762644000,-394.25687646,0.00026306,2]
[426727982,1782762644000,-167.48709581,0.00026306,2]
[426727985,1782762644000,-821.83159595,0.00026306,2]
[426727986,1782762644000,-621.05538326,0.00026306,2]
[426727978,1782762644000,-394.21462644,0.00026306,2]